fUST/lending_fUST_20251114
["ID","MTS","AMOUNT","RATE_DAILY","PERIOD"]
[393946737,1763125842756,-162.83550435,0.000408,120]
[393946738,1763125842765,-867.2577958,0.000408,120]
[393946739,1763125842774,-201.96566264,0.000408,120]
[393946740,1763125842783,-336.67453575,0.000408,120]
[393946741,1763125842792,-175.19528276,0.000408,120]
[393946742,1763125842801,-193.73862276,0.000408,120]
[393946743,1763125842810,-160.0,0.000408,120]
[393946744,1763125842819,-151.569314,0.00040815,10]
[393946745,1763125842829,-1425.0,0.00040998,5]
[393946746,1763125842839,-151.569314,0.00041048,2]
[393946747,1763125842850,-999.0,0.00041095,120]
[393946748,1763125842859,-150.0,0.00041096,10]
[393946749,1763125842869,-160.50374686,0.00041096,2]
[393946750,1763125842878,-420.71369798,0.00041261,120]
[393946751,1763125842887,-600.0,0.0004128,2]
[393946752,1763125842896,-856.1408683,0.00041295,2]
[393946753,1763125842905,-151.569314,0.00041603,7]
[393946754,1763125842914,-600.0,0.0004171,2]
[393946755,1763125842923,-635.76183262,0.00041763,4]
[393946756,1763125842932,-1000.0,0.00041797,90]
[393946757,1763125842941,-244.0,0.00041797,90]
[393946758,1763125842949,-155.12,0.000418,14]
[393946759,1763125842958,-646.35,0.00041841,2]
[393946760,1763125842966,-1300.75176406,0.00041911,120]
[393946761,1763125842975,-162.83550435,0.00042,120]
[393946762,1763125842984,-867.2577958,0.00042,120]
[393946763,1763125842993,-201.96566264,0.00042,120]
[393946764,1763125843002,-336.67453575,0.00042,120]
[393946765,1763125843011,-175.19528276,0.00042,120]
[393946766,1763125843020,-193.73862276,0.00042,120]
[393946767,1763125843030,-600.0,0.0004214,2]
[393946768,1763125843040,-250.0,0.00042466,10]
[393946769,1763125843049,-1178.68263863,0.00042469,2]
[393946770,1763125843059,-600.0,0.0004257,2]
[393946771,1763125843069,-25690.6849734,0.00042734,3]
[393946772,1763125843081,-653.20136626,0.00042858,3]
[393946773,1763125843090,-1178.68263864,0.00042934,2]
[393946774,1763125843099,-1421.6889714,0.00043,120]
[393946775,1763125843110,-600.0,0.00043,2]
[393946776,1763125843121,-3103.03861163,0.00043008,2]
[393946777,1763125843130,-25690.6849734,0.0004302,3]
[393946778,1763125843139,-34289.522177,0.0004303,2]
[393946779,1763125843149,-8365.5713355,0.0004303,2]
[393946780,1763125843160,-151.0,0.00043219,7]
[393946781,1763125843169,-151.0,0.00043219,7]
[393946782,1763125843178,-225.316547,0.00043219,120]
[393946783,1763125843187,-225.316547,0.00043219,120]
[393946784,1763125843196,-225.316547,0.00043219,120]
[393946785,1763125843205,-253.063402,0.00043219,2]
[393946786,1763125843214,-225.316547,0.00043219,120]
[393946787,1763125843223,-151.0,0.00043219,120]
[393946788,1763125843232,-151.0,0.00043219,120]
[393946789,1763125843242,-151.0,0.00043219,120]
[393946790,1763125843251,-151.0,0.00043219,120]
[393946791,1763125843259,-151.0,0.00043219,120]
[393946792,1763125843269,-151.0,0.00043219,120]
[393946793,1763125843278,-151.0,0.00043219,120]
[393946794,1763125843287,-333.99231,0.00043219,120]
[393946795,1763125843296,-333.99231,0.00043219,120]
[393946796,1763125843305,-333.99231,0.00043219,120]
[393946797,1763125843314,-151.0,0.00043219,120]
[393946798,1763125843322,-333.99231,0.00043219,120]
[393946799,1763125843331,-151.0,0.00043219,120]
[393946800,1763125843341,-151.0,0.00043219,120]
[393946801,1763125843350,-151.0,0.00043219,120]
[393946802,1763125843359,-250.0,0.00043219,30]
[393946803,1763125843369,-250.0,0.00043219,30]
[393946804,1763125843378,-250.0,0.00043219,30]
[393946806,1763125843386,-151.0,0.00043219,30]
[393946808,1763125843395,-250.0,0.00043219,30]
[393946809,1763125843406,-156.587,0.00043219,30]
[393946810,1763125843415,-250.0,0.00043219,30]
[393946811,1763125843425,-257.65741167,0.00043219,30]
[393946812,1763125843435,-151.0,0.00043219,30]
[393946813,1763125843446,-250.0,0.00043219,30]
[393946814,1763125843457,-156.587,0.00043219,30]
[393946815,1763125843468,-250.0,0.00043219,30]
[393946816,1763125843477,-162.380719,0.00043219,30]
[393946817,1763125843486,-250.0,0.00043219,30]
[393946818,1763125843497,-250.0,0.00043219,30]
[393946819,1763125843507,-168.3888056,0.00043219,30]
[393946821,1763125843516,-250.0,0.00043219,30]
[393946823,1763125843525,-174.61919141,0.00043219,30]
[393946825,1763125843535,-250.0,0.00043219,30]
[393946827,1763125843543,-181.08010149,0.00043219,30]
[393946829,1763125843552,-250.0,0.00043219,30]
[393946831,1763125843561,-187.78006525,0.00043219,30]
[393946833,1763125843571,-250.0,0.00043219,30]
[393946835,1763125843580,-194.72792766,0.00043219,30]
[393946837,1763125843589,-255.73786967,0.00043219,30]
[393946839,1763125843599,-201.93286099,0.00043219,30]
[393946841,1763125843608,-209.40437684,0.00043219,30]
[393946843,1763125843617,-217.15233878,0.00043219,30]
[393946845,1763125843626,-225.18697532,0.00043219,30]
[393946847,1763125843635,-233.51889341,0.00043219,30]
[393946849,1763125843644,-242.15909246,0.00043219,30]
[393946851,1763125843653,-251.11897888,0.00043219,30]
[393946853,1763125843662,-260.4103811,0.00043219,30]
[393946855,1763125843671,-270.0455652,0.00043219,30]
[393946858,1763125843680,-280.03725112,0.00043219,30]
[393946860,1763125843690,-290.39862941,0.00043219,30]
[393946864,1763125843699,-301.1433787,0.00043219,30]
[393946866,1763125843708,-54966.58249559,0.0004322,30]
[393946900,1763125844132,-648.91394437,0.00027967,10]
[393946918,1763125844300,-980.28605563,0.00027967,10]
[393946920,1763125844309,-160.58449064,0.00027976,2]
[393946922,1763125844319,-500.0,0.00027976,2]
[393946924,1763125844328,-500.0,0.00027976,2]
[393946926,1763125844337,-111.24846227,0.00028973,5]
[393946929,1763125844360,-388.75153773,0.00028973,5]
[393946931,1763125844369,-35525.24399772,0.0004322,30]
[393946972,1763125846005,-585.22942909,0.0004322,30]
[393946973,1763125846170,-3761.70761649,0.0004322,30]
[393946975,1763125860583,150.0,0.00022569,2]
[393951771,1763126953187,350.70360476,0.00032877,120]
[393951862,1763127032025,-436.4165629,0.00023503,2]
[393951863,1763127032034,-308.5386731,0.00023503,2]
[393951864,1763127032084,-585.50860064,0.00023503,2]
[393951871,1763127037899,-291.95272626,0.00023503,2]
[393951872,1763127037909,-1200.53,0.00024132,10]
[393951874,1763127037918,-1874.42,0.00024132,10]
[393951876,1763127037928,-1562.02,0.00024132,10]
[393951878,1763127037939,-1301.68,0.00024132,10]
[393951880,1763127037959,-300.0,0.00024141,2]
[393951882,1763127037969,-300.0,0.00024141,2]
[393951884,1763127037978,-144571.48010679,0.00024142,2]
[393951886,1763127037987,-500.0,0.00024173,2]
[393951888,1763127037996,-523.17483354,0.00024173,2]
[393951890,1763127038005,-500.0,0.00024173,2]
[393951892,1763127038014,-500.0,0.00024173,2]
[393951894,1763127038023,-500.0,0.00024173,2]
[393951896,1763127038032,-500.0,0.00024173,2]
[393951898,1763127038042,-155.13,0.000242,7]
[393951900,1763127038051,-47749.97409083,0.0002465,2]
[393951902,1763127038066,-1393.48827225,0.0002465,2]
[393951905,1763127038078,-869.03702131,0.0002465,2]
[393951907,1763127038090,-268.61921822,0.0002465,2]
[393951909,1763127038103,-4287.66744814,0.0002465,2]
[393951911,1763127038115,-1963.98435221,0.0002465,2]
[393951913,1763127038126,-291.59956823,0.0002465,2]
[393951917,1763127038137,-2751.93122735,0.0002465,2]
[393951920,1763127038148,-1239.51115704,0.0002465,2]
[393951922,1763127038159,-706.64386769,0.0002465,2]
[393951924,1763127038170,-3257.86920441,0.0002465,2]
[393952005,1763127040137,-300.0,0.00024614,20]
[393952006,1763127040146,-300.0,0.00024614,20]
[393952007,1763127040156,-300.0,0.00024614,20]
[393952008,1763127040248,-633.91587493,0.0002465,2]
[393952009,1763127040260,-4156.91988714,0.0002465,2]
[393952080,1763127044497,-300.0,0.00024614,20]
[393952082,1763127044507,-300.0,0.00024614,20]
[393952084,1763127044519,-300.0,0.00024614,20]
[393952086,1763127044528,-300.0,0.00024614,20]
[393952088,1763127044537,-300.0,0.00024614,20]
[393952090,1763127044546,-84.74427322,0.00024614,20]
[393952092,1763127044558,-215.25572678,0.00024614,20]
[393952094,1763127044567,-300.0,0.00024614,20]
[393952095,1763127044577,-300.0,0.00024614,20]
[393952096,1763127044587,-300.0,0.00024614,20]
[393952097,1763127044596,-1210.65752378,0.0002465,2]
[393952098,1763127044605,-500.0,0.00024673,2]
[393952100,1763127044615,-500.0,0.00024673,2]
[393952102,1763127044624,-4184.12,0.000247,7]
[393952105,1763127044633,-156.76,0.000247,14]
[393952107,1763127044643,-500.0,0.00024721,2]
[393952109,1763127044652,-30461.00965827,0.00024773,2]
[393952137,1763127163194,162.6,0.0002959,120]
[393952154,1763127315878,10000.0,2.74e-05,10]
[393952162,1763127383609,152.09159993,0.00022299,2]
[393952163,1763127423715,9847.91840007,0.00019,30]
[393952164,1763127423737,152.08159993,0.00019,30]
[393952165,1763127440792,9847.92840007,0.00019,30]
[393952166,1763127440816,152.07159993,0.00019,30]
[393952167,1763127454706,9847.93840007,0.00019,30]
[393952168,1763127454729,152.06159993,0.00019,30]
[393952170,1763127477208,9847.94840007,0.00019,30]
[393952171,1763127477231,152.05159993,0.00019,30]
[393952174,1763127512904,9847.95840007,0.00022569,2]
[393952175,1763127512928,152.04159993,0.00022569,2]
[393952176,1763127522036,2704.682651,0.00030137,120]
[393952177,1763127525957,9847.96840007,0.00019,10]
[393952178,1763127525981,152.03159993,0.00019,10]
[393952186,1763127541968,9847.97840007,0.00022569,2]
[393952187,1763127542059,152.02159993,0.00022569,2]
[393952211,1763127561981,9847.98840007,0.00019,10]
[393952212,1763127562002,152.01159993,0.00019,10]
[393952213,1763127577811,9847.99840007,0.00019,10]
[393952214,1763127577836,152.00159993,0.00019,10]
[393952284,1763127596484,10000.0,0.00019,10]
[393952347,1763127611947,0.01,0.00019,10]
[393952348,1763127611980,9999.99,0.00019,10]
[393952359,1763127627453,0.02,0.00019,10]
[393952360,1763127627565,9999.98,0.00019,10]
[393952361,1763127643384,0.03,0.00019,10]
[393952362,1763127643406,9999.97,0.00019,10]
[393952364,1763127658713,0.04,0.00019,10]
[393952365,1763127658736,6389.03,0.00019,10]
[393953345,1763127868494,300.0,0.00019,20]
[393953346,1763127878251,221.59,0.00019,20]
[393953353,1763127883671,300.0,0.00019,7]
[393953354,1763127893518,221.59,0.00019,7]
[393953355,1763127898120,300.0,0.00019,2]
[393953394,1763127921711,261.06,0.00019,20]
[393953395,1763127931567,261.06,0.00019,7]
[393953397,1763127941444,223.77,0.00019,2]
[393953411,1763127989780,-1084.73,0.00023979,10]
[393953412,1763127989865,-903.95,0.00023979,10]
[393953413,1763127989949,-753.29,0.00023979,10]
[393953414,1763127990067,-641.62,0.000242,7]
[393953415,1763127990147,-300.0,0.00024623,20]
[393953416,1763127990223,-300.0,0.00024623,20]
[393953417,1763127990303,-300.0,0.00024623,20]
[393953418,1763127990375,-300.0,0.00024623,20]
[393953419,1763127990447,-300.0,0.00024623,20]
[393953420,1763127990519,-300.0,0.00024623,20]
[393953421,1763127990588,-300.0,0.00024623,20]
[393953422,1763127990659,-300.0,0.00024623,20]
[393953423,1763127990730,-300.0,0.00024623,20]
[393953424,1763127990820,-300.0,0.00024623,20]
[393953425,1763127990898,-300.0,0.00024623,20]
[393953426,1763127990972,-300.0,0.00024623,20]
[393953427,1763127991041,-300.0,0.00024623,20]
[393953428,1763127991110,-300.0,0.00024623,20]
[393953429,1763127991176,-300.0,0.00024623,20]
[393953430,1763127991248,-600.0,0.00024623,20]
[393953431,1763127991319,-184.84,0.000249,14]
[393953432,1763127991389,-2000.12419657,0.00025278,5]
[393953433,1763127991464,-18495.38,0.000253,7]
[393953434,1763127991543,-720.0,0.00027085,30]
[393953435,1763127991624,-641.62,0.000271,7]
[393953436,1763127991701,-184.84,0.000276,14]
[393953437,1763127991774,-562.26178389,0.00027973,5]
[393953438,1763127991852,-300.0,0.00027973,5]
[393953439,1763127991932,-18495.38,0.00028,7]
[393953440,1763127992016,-180.73509,0.00028525,60]
[393953441,1763127992100,-336.541438,0.00029463,10]
[393953442,1763127992176,-151.0,0.000296,7]
[393953443,1763127992256,-151.0,0.000296,7]
[393953444,1763127992449,-151.0,0.000296,7]
[393953445,1763127992528,-154.490236,0.000296,7]
[393953446,1763127992610,-578.474932,0.000296,7]
[393953447,1763127992690,-578.474932,0.000296,7]
[393953448,1763127992772,-578.474932,0.000296,7]
[393953449,1763127992856,-578.474932,0.000296,7]
[393953450,1763127992938,-151.0,0.000296,7]
[393953451,1763127993014,-151.0,0.000296,7]
[393953452,1763127993083,-191.706737,0.000296,7]
[393953453,1763127993155,-226.43363,0.000296,7]
[393953454,1763127993232,-151.0,0.000296,7]
[393953455,1763127993328,-641.62,0.000297,7]
[393953456,1763127993406,-864.0,0.00029794,30]
[393953457,1763127993479,-184.84,0.000302,14]
[393953458,1763127993552,-297.0,0.00030521,14]
[393953459,1763127993622,-151.0,0.00031102,31]
[393953460,1763127993692,-151.0,0.00031102,31]
[393953461,1763127993767,-156.320738,0.00031102,31]
[393953462,1763127993837,-153.171769,0.00031102,31]
[393953463,1763127993909,-151.0,0.00031102,31]
[393953464,1763127993980,-154.205759,0.00031102,31]
[393953465,1763127994051,-151.0,0.00031102,31]
[393953466,1763127994120,-267.193848,0.00031102,31]
[393953467,1763127994189,-267.193848,0.00031102,31]
[393953468,1763127994264,-267.193848,0.00031102,31]
[393953469,1763127994338,-267.193848,0.00031102,31]
[393953470,1763127994414,-18495.38,0.000313,7]
[393953471,1763127994501,-151.0,0.000313,31]
[393953472,1763127994594,-277.396058,0.000313,31]
[393953473,1763127994687,-277.396058,0.000313,31]
[393953474,1763127994782,-286.53806,0.000313,31]
[393953475,1763127994893,-330.2,0.000313,31]
[393953476,1763127994978,-286.53806,0.000313,31]
[393953477,1763127995062,-277.396058,0.000313,31]
[393953478,1763127995136,-330.2,0.000313,31]
[393953479,1763127995208,-277.396058,0.000313,31]
[393953480,1763127995280,-286.53806,0.000313,31]
[393953481,1763127995354,-330.2,0.000313,31]
[393953482,1763127995431,-286.53806,0.000313,31]
[393953483,1763127995508,-330.2,0.000313,31]
[393953484,1763127995583,-160.183927,0.000313,31]
[393953485,1763127995650,-151.0,0.000313,31]
[393953486,1763127995718,-151.0,0.000313,31]
[393953487,1763127995787,-156.269461,0.000313,31]
[393953488,1763127995871,-151.0,0.000313,31]
[393953489,1763127995946,-151.0,0.000313,31]
[393953490,1763127996016,-1053.349591,0.000313,28]
[393953491,1763127996099,-151.0,0.000313,31]
[393953492,1763127996178,-1053.349591,0.000313,28]
[393953493,1763127996247,-151.0,0.000313,31]
[393953494,1763127996314,-151.0,0.000313,31]
[393953495,1763127996381,-1053.349591,0.000313,28]
[393953496,1763127996457,-1053.349591,0.000313,28]
[393953497,1763127996614,-297.02361525,0.00031458,56]
[393953498,1763127996691,-297.02361524,0.0003173,30]
[393953499,1763127996763,-260.443,0.00032415,32]
[393953500,1763127996839,-174.0,0.00032712,55]
[393953501,1763127996916,-1000.0,0.00032773,30]
[393953502,1763127996990,-151.0,0.00032877,30]
[393953503,1763127997062,-151.0,0.00032877,30]
[393953504,1763127997128,-300.0,0.00032877,120]
[393953505,1763127997191,-300.0,0.00032877,120]
[393953506,1763127997257,-300.0,0.00032877,120]
[393953507,1763127997324,-233.40824704,0.00032877,120]
[393953508,1763127997389,-280.6708128,0.00032877,7]
[393953509,1763127997451,-165.34070973,0.00032969,10]
[393953510,1763127997520,-43993.27773975,0.00033,30]
[393953511,1763127997587,-151.0,0.0003301,31]
[393953512,1763127997657,-151.0,0.0003301,31]
[393953513,1763127997724,-153.00654,0.0003301,31]
[393953514,1763127997795,-153.839426,0.0003301,31]
[393953515,1763127997870,-153.040606,0.0003301,31]
[393953516,1763127997948,-151.0,0.0003301,31]
[393953517,1763127998022,-151.0,0.0003301,31]
[393953518,1763127998097,-151.0,0.0003301,31]
[393953519,1763127998172,-151.0,0.0003301,31]
[393953520,1763127998251,-151.0,0.0003301,31]
[393953521,1763127998329,-151.0,0.0003301,31]
[393953522,1763127998403,-151.0,0.0003301,31]
[393953523,1763127998475,-151.0,0.0003301,31]
[393953524,1763127998558,-151.0,0.0003301,7]
[393953525,1763127998660,-246.987095,0.0003301,31]
[393953526,1763127998743,-259.528874,0.0003301,31]
[393953527,1763127998822,-259.528874,0.0003301,31]
[393953528,1763127998906,-151.0,0.0003301,31]
[393953529,1763127998983,-259.528874,0.0003301,31]
[393953530,1763127999058,-259.528874,0.0003301,31]
[393953531,1763127999126,-151.0,0.0003301,31]
[393953532,1763127999195,-159.372937,0.0003301,31]
[393953533,1763127999266,-151.0,0.0003301,31]
[393953534,1763127999339,-151.0,0.0003301,31]
[393953535,1763127999410,-151.0,0.0003301,31]
[393953536,1763127999475,-151.0,0.0003301,31]
[393953537,1763127999539,-151.0,0.0003301,31]
[393953538,1763127999607,-151.0,0.0003301,31]
[393953539,1763127999677,-151.0,0.0003301,7]
[393953540,1763127999752,-441.151505,0.0003301,15]
[393953541,1763127999829,-441.151505,0.0003301,15]
[393953542,1763127999906,-441.151505,0.0003301,15]
[393953543,1763127999975,-441.151505,0.0003301,15]
[393953544,1763128000042,-151.0,0.0003301,31]
[393953545,1763128000109,-159.861931,0.0003301,31]
[393953546,1763128000173,-151.829465,0.0003301,31]
[393953547,1763128000244,-361.27597,0.0003301,31]
[393953548,1763128000430,-151.0,0.0003301,31]
[393953549,1763128000507,-151.0,0.0003301,31]
[393953550,1763128000584,-361.007074,0.0003301,31]
[393953551,1763128000659,-361.007074,0.0003301,31]
[393953552,1763128000729,-361.007074,0.0003301,31]
[393953553,1763128000798,-361.007074,0.0003301,31]
[393953554,1763128000866,-151.0,0.0003301,31]
[393953555,1763128000934,-151.0,0.0003301,31]
[393953556,1763128001000,-151.0,0.0003301,31]
[393953557,1763128001070,-151.000009,0.0003301,31]
[393953558,1763128001133,-151.0,0.0003301,31]
[393953559,1763128001204,-174.486849,0.0003301,31]
[393953560,1763128001286,-174.486849,0.0003301,31]
[393953561,1763128001365,-174.486849,0.0003301,31]
[393953562,1763128001433,-174.486849,0.0003301,31]
[393953563,1763128001505,-151.0,0.0003301,31]
[393953564,1763128001575,-166.866822,0.0003301,31]
[393953565,1763128001645,-151.0,0.0003301,30]
[393953566,1763128001720,-151.0,0.0003301,30]
[393953567,1763128001807,-151.0,0.0003301,31]
[393953568,1763128001890,-220.02435,0.0003301,31]
[393953569,1763128001988,-267.193848,0.0003301,31]
[393953570,1763128002072,-267.193848,0.0003301,31]
[393953571,1763128002147,-267.193848,0.0003301,31]
[393953572,1763128002218,-267.193848,0.0003301,31]
[393953573,1763128002293,-151.0,0.0003301,31]
[393953574,1763128002365,-151.0,0.0003301,31]
[393953575,1763128002446,-578.474932,0.0003301,31]
[393953576,1763128002521,-578.474932,0.0003301,31]
[393953577,1763128002595,-578.474932,0.0003301,31]
[393953578,1763128002685,-578.474932,0.0003301,31]
[393953579,1763128002770,-151.0,0.0003301,31]
[393953580,1763128002860,-151.0,0.0003301,31]
[393953581,1763128002936,-169.391112,0.00033038,31]
[393953582,1763128003013,-151.0,0.00033038,31]
[393953583,1763128003091,-151.0,0.00033038,31]
[393953584,1763128003167,-151.0,0.00033038,31]
[393953585,1763128003243,-151.0,0.00033147,31]
[393953586,1763128003326,-277.396058,0.00033147,31]
[393953587,1763128003398,-277.396058,0.00033147,31]
[393953588,1763128003465,-286.53806,0.00033147,31]
[393953589,1763128003536,-330.2,0.00033147,31]
[393953590,1763128003604,-286.53806,0.00033147,31]
[393953591,1763128003681,-277.396058,0.00033147,31]
[393953592,1763128003759,-330.2,0.00033147,31]
[393953593,1763128003856,-277.396058,0.00033147,31]
[393953594,1763128003932,-286.53806,0.00033147,31]
[393953595,1763128004004,-330.2,0.00033147,31]
[393953596,1763128004171,-330.2,0.00033147,31]
[393953597,1763128004251,-286.53806,0.00033147,31]
[393953598,1763128004331,-151.0,0.00033147,31]
[393953599,1763128004402,-151.0,0.00033147,31]
[393953600,1763128004472,-168.822704,0.00033147,31]
[393953601,1763128004540,-151.0,0.00033147,31]
[393953602,1763128004605,-1053.349591,0.00033147,28]
[393953603,1763128004668,-1053.349591,0.00033147,28]
[393953604,1763128004736,-151.0,0.00033147,31]
[393953605,1763128004805,-151.0,0.00033147,31]
[393953606,1763128004872,-151.0,0.00033147,31]
[393953607,1763128004942,-1053.349591,0.00033147,28]
[393953608,1763128005013,-1053.349591,0.00033147,28]
[393953609,1763128005084,-608.76377504,0.000332,117]
[393953610,1763128005152,-184.84,0.000333,30]
[393953611,1763128005224,-336.541438,0.00033354,7]
[393953612,1763128005301,-641.62,0.000334,7]
[393953613,1763128005373,-168.0,0.00033633,7]
[393953614,1763128005440,-5315.0,0.00033664,120]
[393953615,1763128005505,-18495.38,0.000338,14]
[393953616,1763128005567,-1701.23,0.00034,14]
[393953617,1763128005627,-467.92959759,0.00034005,120]
[393953618,1763128005688,-336.541438,0.0003427,10]
[393953619,1763128005752,-5315.0,0.00034386,7]
[393953620,1763128005823,-608.76377502,0.00034644,120]
[393953621,1763128005897,-848.03717935,0.00034728,12]
[393953622,1763128005977,-168.0,0.00034857,7]
[393953623,1763128006058,-336.541438,0.00034916,7]
[393953624,1763128006129,-2057.00476318,0.00035,15]
[393953625,1763128006203,-160.0,0.00035,120]
[393953626,1763128006278,-2704.682651,0.0003516,120]
[393953627,1763128006343,-1701.23,0.000354,14]
[393953628,1763128006401,-1000.0,0.00035521,10]
[393953629,1763128006460,-217.00669325,0.00035616,5]
[393953630,1763128006531,-151.0,0.00035616,31]
[393953631,1763128006611,-151.0,0.00035616,31]
[393953632,1763128006684,-1000.0,0.00035658,10]
[393953633,1763128006759,-1000.0,0.00035795,10]
[393953634,1763128006827,-1000.0,0.00035932,10]
[393953635,1763128006896,-169.0,0.00036,84]
[393953636,1763128006967,-512.25976999,0.00036005,120]
[393953637,1763128007037,-1000.0,0.0003605,30]
[393953638,1763128007108,-244.0,0.0003605,30]
[393953639,1763128007170,-1000.0,0.00036068,10]
[393953640,1763128007231,-1000.0,0.00036205,10]
[393953641,1763128007301,-1000.0,0.00036342,10]
[393953642,1763128007374,-5315.0,0.00036412,7]
[393953643,1763128007441,-336.541438,0.00036477,7]
[393953644,1763128007582,-1000.0,0.00036479,10]
[393953645,1763128007657,-1000.0,0.00036616,10]
[393953646,1763128007725,-1000.0,0.00036753,10]
[393953647,1763128007802,-152.86,0.00036784,60]
[393953648,1763128007884,-152.86,0.00036884,60]
[393953649,1763128007974,-1000.0,0.0003689,10]
[393953650,1763128008060,-152.86,0.00036984,60]
[393953651,1763128008134,-4100.0,0.00037,120]
[393953652,1763128008206,-1000.0,0.00037027,10]
[393953653,1763128008279,-152.86,0.00037084,60]
[393953654,1763128008340,-1000.0,0.00037164,10]
[393953655,1763128008401,-152.86,0.00037184,60]
[393953656,1763128008462,-152.86,0.00037284,60]
[393953657,1763128008520,-1000.0,0.00037301,10]
[393953658,1763128008588,-152.86,0.00037384,60]
[393953659,1763128008652,-563.10731827,0.0003748,30]
[393953660,1763128008730,-152.86,0.00037484,60]
[393953661,1763128008803,-152.86,0.00037584,60]
[393953662,1763128008887,-152.86,0.00037684,60]
[393953663,1763128008980,-152.86,0.00037784,60]
[393953664,1763128009068,-152.86,0.00037884,60]
[393953665,1763128009140,-152.86,0.00037984,60]
[393953666,1763128009207,-641.62,0.00038,7]
[393953667,1763128009282,-556.5899424,0.00038005,120]
[393953668,1763128009358,-336.541438,0.00038038,7]
[393953669,1763128009434,-152.86,0.00038084,60]
[393953670,1763128009508,-152.86,0.00038184,60]
[393953671,1763128009582,-184.84,0.000382,30]
[393953672,1763128009659,-152.86,0.00038284,60]
[393953673,1763128009737,-319.741427,0.00038356,120]
[393953674,1763128009815,-319.741427,0.00038356,120]
[393953675,1763128009895,-319.741427,0.00038356,120]
[393953676,1763128009969,-319.741427,0.00038356,120]
[393953677,1763128010039,-152.86,0.00038384,120]
[393953678,1763128010108,-184.84,0.000384,30]
[393953679,1763128010177,-152.86,0.00038484,120]
[393953680,1763128010245,-152.86,0.00038584,120]
[393953681,1763128010316,-152.86,0.00038684,120]
[393953682,1763128010388,-151.0,0.000387,12]
[393953683,1763128010461,-152.86,0.00038784,120]
[393953684,1763128010523,-152.86,0.00038884,120]
[393953685,1763128010584,-641.62,0.000389,7]
[393953686,1763128010644,-152.86,0.00038984,120]
[393953687,1763128010706,-220.70929379,0.00039,120]
[393953688,1763128010776,-261.41130207,0.00039,120]
[393953689,1763128010847,-165.42383808,0.00039,10]
[393953690,1763128010991,-4448.67941432,0.00039,120]
[393953691,1763128011064,-336.541438,0.00039076,10]
[393953692,1763128011130,-152.86,0.00039084,120]
[393953693,1763128011197,-18495.38,0.000391,14]
[393953694,1763128011267,-151.0,0.000391,120]
[393953695,1763128011334,-153.28922,0.000391,120]
[393953696,1763128011395,-151.0,0.000391,120]
[393953697,1763128011453,-151.0,0.000391,120]
[393953698,1763128011513,-173.814937,0.000391,7]
[393953699,1763128011573,-441.151505,0.000391,15]
[393953700,1763128011637,-441.151505,0.000391,15]
[393953701,1763128011701,-441.151505,0.000391,15]
[393953702,1763128011773,-441.151505,0.000391,15]
[393953703,1763128011841,-151.0,0.000391,120]
[393953704,1763128011911,-361.27597,0.000391,120]
[393953705,1763128011981,-154.627537,0.000391,120]